fUST/lending_fUST_20250930
["ID","MTS","AMOUNT","RATE_DAILY","PERIOD"]
[388430085,1759167038359,-486.74,0.00023704,2]
[388430086,1759167038372,-480.0,0.00023704,2]
[388430087,1759167038384,-480.0,0.00023704,2]
[388430088,1759167038398,-480.0,0.00023704,2]
[388430089,1759167038411,-589.23,0.00023704,2]
[388430090,1759167038427,-480.0,0.00023704,2]
[388430091,1759167038440,-480.0,0.00023704,2]
[388430092,1759167038453,-480.0,0.00023704,2]
[388430093,1759167038464,-480.0,0.00023704,2]
[388430094,1759167038475,-485.63868584,0.00023704,2]
[388430095,1759167038487,-480.0,0.00023704,2]
[388430096,1759167038498,-480.0,0.00023704,2]
[388430097,1759167038512,-571.98,0.00023704,2]
[388430098,1759167038524,-480.0,0.00023704,2]
[388430099,1759167038537,-1206.99,0.00023704,2]
[388430100,1759167038550,-2623.6,0.00023704,2]
[388430101,1759167038561,-480.0,0.00023704,2]
[388430102,1759167038573,-480.0,0.00023704,2]
[388430103,1759167038586,-480.0,0.00023704,2]
[388430104,1759167038601,-883.53,0.00023704,2]
[388430106,1759167038614,-480.0,0.00023704,2]
[388430107,1759167038626,-921.2,0.00023704,2]
[388430108,1759167038637,-480.0,0.00023704,2]
[388430109,1759167038647,-1622.27,0.00023704,2]
[388430110,1759167038658,-582.71,0.00023704,2]
[388430112,1759167038670,-480.0,0.00023704,2]
[388430114,1759167038681,-1790.37,0.00023704,2]
[388430116,1759167038694,-480.0,0.00023704,2]
[388430119,1759167038716,-733.48,0.00023704,2]
[388430122,1759167038728,-480.0,0.00023704,2]
[388430124,1759167038740,-515.13,0.00023704,2]
[388430126,1759167038752,-480.0,0.00023704,2]
[388430128,1759167038764,-8660.02,0.00023704,2]
[388430131,1759167038776,-1283.43,0.00023704,2]
[388430133,1759167038788,-673.22,0.00023704,2]
[388430135,1759167038801,-2624.04,0.00023704,2]
[388430137,1759167038813,-1091.56,0.00023704,2]
[388430139,1759167038825,-1807.45,0.00023704,2]
[388430142,1759167038837,-174.66757281,0.00023705,2]
[388430144,1759167038849,-480.0,0.00023705,2]
[388430146,1759167038860,-480.0,0.00023705,2]
[388430148,1759167038872,-582.99,0.00023705,2]
[388430150,1759167038884,-480.0,0.00023705,2]
[388430152,1759167038896,-1984.89,0.00023705,2]
[388430154,1759167038907,-480.0,0.00023705,2]
[388430156,1759167038919,-807.25,0.00023705,2]
[388430157,1759167038931,-480.0,0.00023705,2]
[388430158,1759167038942,-618.06,0.00023705,2]
[388430159,1759167038953,-704.07,0.00023705,2]
[388430161,1759167038965,-480.0,0.00023705,2]
[388430162,1759167038977,-480.0,0.00023705,2]
[388430164,1759167038989,-480.0,0.00023705,2]
[388430166,1759167039001,-633.1,0.00023705,2]
[388430167,1759167039012,-480.0,0.00023705,2]
[388430168,1759167039026,-2000.48,0.00023705,2]
[388430169,1759167039038,-480.0,0.00023705,2]
[388430171,1759167039050,-620.01,0.00023705,2]
[388430172,1759167039061,-616.49,0.00023705,2]
[388430173,1759167039073,-480.0,0.00023705,2]
[388430174,1759167039084,-480.0,0.00023705,2]
[388430175,1759167039096,-641.68,0.00023705,2]
[388430176,1759167039108,-562.84,0.00023705,2]
[388430177,1759167039120,-546.56,0.00023705,2]
[388430178,1759167039132,-552.64,0.00023705,2]
[388430179,1759167039145,-480.0,0.00023705,2]
[388430180,1759167039160,-617.14,0.00023705,2]
[388430181,1759167039171,-1183.91,0.00023705,2]
[388430182,1759167039183,-2115.83,0.00023705,2]
[388430183,1759167039197,-480.0,0.00023705,2]
[388430184,1759167039209,-570.08,0.00023705,2]
[388430186,1759167039219,-556.32,0.00023705,2]
[388430188,1759167039231,-681.59,0.00023705,2]
[388430190,1759167039242,-480.0,0.00023705,2]
[388430192,1759167039252,-542.84,0.00023705,2]
[388430193,1759167039264,-480.0,0.00023705,2]
[388430194,1759167039274,-480.0,0.00023705,2]
[388430195,1759167039285,-1613.48,0.00023705,2]
[388430196,1759167039296,-480.0,0.00023705,2]
[388430197,1759167039307,-480.0,0.00023705,2]
[388430198,1759167039318,-480.0,0.00023707,2]
[388430199,1759167039329,-544.89,0.00023707,2]
[388430200,1759167039340,-480.0,0.00023707,2]
[388430201,1759167039351,-516.51,0.00023707,2]
[388430202,1759167039362,-480.0,0.00023707,2]
[388430203,1759167039374,-575.73,0.00023707,2]
[388430204,1759167039384,-480.0,0.00023707,2]
[388430205,1759167039396,-851.58,0.00023707,2]
[388430206,1759167039407,-1796.71,0.00023707,2]
[388430207,1759167039418,-480.0,0.00023707,2]
[388430208,1759167039430,-3431.38,0.00023707,2]
[388430209,1759167039440,-480.0,0.00023707,2]
[388430210,1759167039452,-480.0,0.00023707,2]
[388430211,1759167039463,-480.0,0.00023707,2]
[388430212,1759167039475,-480.0,0.00023707,2]
[388430213,1759167039487,-528.69,0.00023707,2]
[388430214,1759167039498,-1348.66,0.00023707,2]
[388430215,1759167039509,-480.0,0.00023707,2]
[388430216,1759167039521,-480.0,0.00023707,2]
[388430217,1759167039532,-3746.41,0.00023707,2]
[388430218,1759167039543,-480.0,0.00023707,2]
[388430219,1759167039554,-938.51,0.00023707,2]
[388430220,1759167039566,-394.31354082,0.00023707,2]
[388430221,1759167039577,-480.0,0.00023707,2]
[388430222,1759167039589,-480.0,0.00023707,2]
[388430223,1759167039600,-871.73,0.00023707,2]
[388430224,1759167039611,-480.0,0.00023707,2]
[388430225,1759167039623,-480.0,0.00023707,2]
[388430226,1759167039634,-1887.71,0.00023707,2]
[388430227,1759167039645,-480.0,0.00023707,2]
[388430228,1759167039656,-480.0,0.00023707,2]
[388430229,1759167039667,-480.0,0.00023708,2]
[388430230,1759167039678,-480.0,0.00023708,2]
[388430231,1759167039688,-480.0,0.00023708,2]
[388430232,1759167039701,-480.0,0.00023708,2]
[388430233,1759167039712,-494.48,0.00023708,2]
[388430234,1759167039722,-480.0,0.00023708,2]
[388430235,1759167039733,-480.0,0.00023708,2]
[388430236,1759167039744,-480.0,0.00023708,2]
[388430237,1759167039755,-480.0,0.00023708,2]
[388430238,1759167039767,-480.0,0.00023708,2]
[388430239,1759167039777,-480.0,0.00023708,2]
[388430240,1759167039789,-540.1,0.00023708,2]
[388430241,1759167039800,-537.75,0.00023708,2]
[388430242,1759167039811,-480.0,0.00023708,2]
[388430243,1759167039821,-480.0,0.00023708,2]
[388430244,1759167039832,-480.0,0.00023708,2]
[388430245,1759167039847,-507.26,0.00023708,2]
[388430246,1759167039858,-480.0,0.00023708,2]
[388430247,1759167039869,-480.0,0.00023708,2]
[388430248,1759167039880,-508.9,0.00023708,2]
[388430249,1759167039891,-535.08,0.00023708,2]
[388430250,1759167039902,-480.0,0.00023708,2]
[388430251,1759167039912,-480.0,0.00023708,2]
[388430252,1759167039923,-480.0,0.00023708,2]
[388430253,1759167039934,-566.48,0.00023708,2]
[388430254,1759167039945,-480.0,0.00023708,2]
[388430255,1759167039955,-480.0,0.00023708,2]
[388430256,1759167039966,-480.0,0.00023708,2]
[388430257,1759167039977,-480.0,0.00023708,2]
[388430258,1759167039988,-210.37918064,0.00023708,2]
[388430259,1759167039998,-480.0,0.00023708,2]
[388430260,1759167040009,-480.0,0.00023708,2]
[388430261,1759167040020,-480.0,0.00023708,2]
[388430262,1759167040031,-635.44,0.00023708,2]
[388430263,1759167040041,-480.0,0.00023708,2]
[388430264,1759167040052,-480.0,0.00023708,2]
[388430265,1759167040063,-480.0,0.00023708,2]
[388430266,1759167040074,-480.0,0.00023708,2]
[388430267,1759167040085,-480.0,0.00023708,2]
[388430268,1759167040097,-480.0,0.00023708,2]
[388430269,1759167040107,-480.0,0.00023708,2]
[388430270,1759167040116,-480.0,0.00023708,2]
[388430271,1759167040125,-480.0,0.00023708,2]
[388430272,1759167040135,-492.54,0.00023708,2]
[388430273,1759167040146,-480.0,0.00023708,2]
[388430274,1759167040156,-480.0,0.00023708,2]
[388430275,1759167040165,-480.0,0.00023708,2]
[388430276,1759167040175,-480.0,0.00023708,2]
[388430277,1759167040187,-480.0,0.00023708,2]
[388430278,1759167040198,-480.0,0.00023708,2]
[388430279,1759167040208,-531.84,0.00023708,2]
[388430280,1759167040219,-522.73,0.00023708,2]
[388430281,1759167040230,-480.0,0.00023708,2]
[388430282,1759167040240,-480.0,0.00023708,2]
[388430283,1759167040524,-480.0,0.00023708,2]
[388430284,1759167040548,-512.93,0.00023708,2]
[388430285,1759167040567,-503.54,0.00023708,2]
[388430286,1759167040581,-480.0,0.00023708,2]
[388430287,1759167040590,-1078.46,0.00023708,2]
[388430288,1759167040600,-573.05,0.00023708,2]
[388430289,1759167040611,-480.0,0.00023708,2]
[388430290,1759167040620,-480.0,0.00023708,2]
[388430291,1759167040629,-596.72,0.00023708,2]
[388430292,1759167040639,-659.07,0.00023708,2]
[388430293,1759167040650,-788.76,0.00023708,2]
[388430294,1759167040660,-487.04,0.00023708,2]
[388430295,1759167040669,-480.0,0.00023708,2]
[388430296,1759167040679,-480.0,0.00023708,2]
[388430297,1759167040688,-480.0,0.00023708,2]
[388430298,1759167040698,-1194.73,0.00023708,2]
[388430299,1759167040708,-807.24,0.00023708,2]
[388430300,1759167040718,-918.29,0.00023708,2]
[388430301,1759167040728,-480.0,0.00023708,2]
[388430302,1759167040737,-602.62,0.00023708,2]
[388430303,1759167040747,-480.0,0.00023708,2]
[388430304,1759167040756,-910.45,0.00023708,2]
[388430305,1759167040765,-480.0,0.00023708,2]
[388430306,1759167040774,-480.0,0.00023708,2]
[388430307,1759167040784,-725.29,0.00023708,2]
[388430308,1759167040794,-480.0,0.00023708,2]
[388430309,1759167040803,-480.0,0.00023708,2]
[388430310,1759167040812,-935.18,0.00023708,2]
[388430311,1759167040822,-1239.95,0.00023708,2]
[388430312,1759167040832,-767.48,0.00023708,2]
[388430313,1759167040842,-480.0,0.00023708,2]
[388430314,1759167040851,-987.53,0.00023708,2]
[388430315,1759167040861,-480.0,0.00023708,2]
[388430316,1759167040870,-480.0,0.00023708,2]
[388430317,1759167040879,-480.0,0.00023708,2]
[388430318,1759167040889,-577.1,0.00023708,2]
[388430319,1759167040899,-480.0,0.00023708,2]
[388430320,1759167040909,-480.0,0.00023708,2]
[388430321,1759167040919,-480.0,0.00023708,2]
[388430322,1759167040929,-575.37,0.00023708,2]
[388430323,1759167040939,-571.91,0.00023708,2]
[388430324,1759167040949,-480.0,0.00023708,2]
[388430325,1759167040960,-520.83,0.00023708,2]
[388430326,1759167040971,-480.0,0.00023708,2]
[388430327,1759167040982,-480.0,0.00023708,2]
[388430328,1759167040992,-430.65286812,0.00023708,2]
[388430329,1759167041002,-531.38,0.00023708,2]
[388430330,1759167041012,-963.0,0.00023708,2]
[388430331,1759167041022,-487.14777658,0.00023708,2]
[388430332,1759167041030,-480.0,0.00023708,2]
[388430333,1759167041039,-480.0,0.00023708,2]
[388430334,1759167041049,-519.15,0.00023708,2]
[388430335,1759167041059,-480.0,0.00023708,2]
[388430336,1759167041068,-480.0,0.00023708,2]
[388430337,1759167041077,-480.0,0.00023708,2]
[388430338,1759167041087,-508.12099485,0.00023708,2]
[388430339,1759167041098,-480.0,0.00023708,2]
[388430340,1759167041107,-552.62,0.00023708,2]
[388430341,1759167041117,-539.43,0.00023708,2]
[388430342,1759167041127,-717.33,0.00023708,2]
[388430343,1759167041136,-480.0,0.00023708,2]
[388430344,1759167041147,-650.9,0.00023708,2]
[388430345,1759167041158,-480.0,0.00023708,2]
[388430346,1759167041167,-810.33,0.00023708,2]
[388430347,1759167041176,-942.08,0.00023708,2]
[388430348,1759167041185,-497.7,0.00023708,2]
[388430349,1759167041195,-876.62,0.00023708,2]
[388430350,1759167041204,-480.0,0.00023708,2]
[388430351,1759167041213,-678.57,0.00023708,2]
[388430352,1759167041224,-1277.27,0.00023708,2]
[388430353,1759167041234,-480.0,0.00023708,2]
[388430354,1759167041243,-494.27,0.00023708,2]
[388430355,1759167041252,-480.0,0.00023708,2]
[388430356,1759167041261,-480.0,0.00023708,2]
[388430357,1759167041271,-480.0,0.00023708,2]
[388430358,1759167041280,-499.21,0.00023708,2]
[388430359,1759167041290,-480.0,0.00023708,2]
[388430360,1759167041299,-573.69,0.00023708,2]
[388430361,1759167041309,-480.0,0.00023708,2]
[388430363,1759167041319,-480.0,0.00023708,2]
[388430364,1759167041328,-480.0,0.00023708,2]
[388430365,1759167041338,-480.0,0.00023708,2]
[388430367,1759167041348,-480.0,0.00023708,2]
[388430369,1759167041358,-506.11,0.00023708,2]
[388430371,1759167041367,-480.0,0.00023708,2]
[388430372,1759167041376,-480.0,0.00023708,2]
[388430373,1759167041386,-511.53,0.00023708,2]
[388430374,1759167041395,-597.98,0.00023708,2]
[388430375,1759167041404,-480.0,0.00023708,2]
[388430376,1759167041414,-513.74,0.00023708,2]
[388430377,1759167041423,-480.0,0.00023708,2]
[388430378,1759167041433,-5563.36,0.00023708,2]
[388430379,1759167041443,-517.06,0.00023708,2]
[388430380,1759167041453,-436.50988295,0.00023708,2]
[388430381,1759167041462,-808.54,0.00023708,2]
[388430382,1759167041471,-522.16,0.00023708,2]
[388430383,1759167041479,-859.5,0.00023708,2]
[388430384,1759167041489,-1331.05,0.00023708,2]
[388430385,1759167041499,-480.0,0.00023708,2]
[388430386,1759167041508,-2031.57,0.00023708,2]
[388430387,1759167041517,-530.58,0.00023708,2]
[388430388,1759167041527,-480.0,0.00023708,2]
[388430389,1759167041536,-480.0,0.00023708,2]
[388430390,1759167041546,-480.0,0.00023708,2]
[388430391,1759167041555,-445.14,0.00023708,2]
[388430392,1759167041564,-504.08,0.00023708,2]
[388430393,1759167041574,-630.18,0.00023708,2]
[388430394,1759167041583,-480.0,0.00023708,2]
[388430395,1759167041592,-500.0,0.00023708,2]
[388430396,1759167041603,-480.0,0.00023708,2]
[388430397,1759167041612,-480.0,0.00023708,2]
[388430398,1759167041622,-1207.64,0.00023708,2]
[388430399,1759167041631,-480.0,0.00023708,2]
[388430400,1759167041641,-1030.5,0.00023708,2]
[388430401,1759167041650,-624.38,0.00023708,2]
[388430402,1759167041660,-1332.9,0.00023708,2]
[388430403,1759167041669,-2149.9,0.00023708,2]
[388430404,1759167041679,-4528.57,0.00023708,2]
[388430405,1759167041688,-480.0,0.00023708,2]
[388430406,1759167041697,-504.91,0.00023708,2]
[388430407,1759167041707,-2090.44,0.00023708,2]
[388430408,1759167041716,-612.59,0.00023708,2]
[388430409,1759167041725,-534.82,0.00023708,2]
[388430410,1759167041734,-480.0,0.00023708,2]
[388430411,1759167041744,-480.0,0.00023708,2]
[388430412,1759167041753,-480.0,0.00023708,2]
[388430413,1759167041762,-480.0,0.00023708,2]
[388430414,1759167041771,-480.0,0.00023708,2]
[388430415,1759167041779,-729.34,0.00023708,2]
[388430416,1759167041789,-480.0,0.00023708,2]
[388430417,1759167041798,-1173.28,0.00023708,2]
[388430418,1759167041808,-480.0,0.00023708,2]
[388430419,1759167041816,-480.0,0.00023708,2]
[388430420,1759167041825,-812.04,0.00023708,2]
[388430421,1759167041835,-620.91,0.00023708,2]
[388430422,1759167041847,-573.36,0.00023708,2]
[388430423,1759167041857,-598.2,0.00023708,2]
[388430424,1759167041867,-480.0,0.00023708,2]
[388430425,1759167041876,-524.21,0.00023708,2]
[388430426,1759167041885,-4810.92,0.00023708,2]
[388430427,1759167041895,-755.45,0.00023708,2]
[388430428,1759167041904,-480.0,0.00023708,2]
[388430429,1759167041913,-1144.33,0.00023708,2]
[388430430,1759167041922,-968.18,0.00023708,2]
[388430431,1759167041932,-480.0,0.00023708,2]
[388430432,1759167041942,-480.0,0.00023708,2]
[388430433,1759167041952,-1871.07,0.00023708,2]
[388430434,1759167041961,-873.01,0.00023708,2]
[388430435,1759167041970,-480.0,0.00023708,2]
[388430436,1759167041980,-1311.89,0.00023708,2]
[388430437,1759167041990,-480.0,0.00023708,2]
[388430438,1759167041999,-480.0,0.00023708,2]
[388430439,1759167042008,-480.0,0.00023708,2]
[388430440,1759167042019,-2555.79,0.00023708,2]
[388430441,1759167042028,-500.0,0.00023708,2]
[388430442,1759167042037,-480.0,0.00023708,2]
[388430443,1759167042046,-535.77,0.00023708,2]
[388430444,1759167042055,-480.0,0.00023708,2]
[388430445,1759167042064,-480.0,0.00023708,2]
[388430446,1759167042073,-480.0,0.00023708,2]
[388430447,1759167042083,-480.0,0.00023709,2]
[388430448,1759167042093,-912.29,0.00023709,2]
[388430449,1759167042102,-480.0,0.00023709,2]
[388430450,1759167042111,-480.0,0.00023709,2]
[388430451,1759167042119,-480.0,0.00023709,2]
[388430452,1759167042128,-480.0,0.00023709,2]
[388430453,1759167042137,-529.02,0.00023709,2]
[388430454,1759167042149,-480.0,0.00023709,2]
[388430455,1759167042159,-480.0,0.00023709,2]
[388430456,1759167042168,-480.0,0.00023709,2]
[388430457,1759167042177,-480.0,0.00023709,2]
[388430458,1759167042186,-610.1,0.00023709,2]
[388430459,1759167042197,-480.0,0.00023709,2]
[388430460,1759167042207,-480.0,0.00023709,2]
[388430461,1759167042216,-494.48,0.00023709,2]
[388430462,1759167042226,-480.0,0.00023709,2]
[388430463,1759167042237,-560.42,0.00023709,2]
[388430464,1759167042246,-480.0,0.00023709,2]
[388430465,1759167042255,-480.0,0.00023709,2]
[388430466,1759167042264,-480.0,0.00023709,2]
[388430467,1759167042274,-536.61971268,0.0002371,2]
[388430468,1759167042284,-500.0,0.00023711,2]
[388430469,1759167042293,-151.0,0.00023711,2]
[388430470,1759167042302,-500.0,0.00023711,2]
[388430471,1759167042311,-151.0,0.00023711,2]
[388430472,1759167042320,-258.35622663,0.00023711,2]
[388430473,1759167042330,-151.0,0.00023711,2]
[388430474,1759167042339,-500.0,0.00023711,2]
[388430475,1759167042351,-500.0,0.00023711,2]
[388430476,1759167042360,-151.55455188,0.00023711,2]
[388430477,1759167042370,-500.0,0.00023711,2]
[388430478,1759167042379,-500.0,0.00023711,2]
[388430479,1759167042388,-500.0,0.00023711,2]
[388430480,1759167042397,-500.0,0.00023711,2]
[388430481,1759167042406,-500.0,0.00023711,2]
[388430482,1759167042415,-151.0,0.00023711,2]
[388430483,1759167042425,-500.0,0.00023711,2]
[388430484,1759167042435,-151.0,0.00023711,2]
[388430486,1759167042444,-500.0,0.00023711,2]
[388430487,1759167042452,-500.0,0.00023711,2]
[388430488,1759167042461,-500.0,0.00023711,2]
[388430489,1759167042470,-152.46363671,0.00023711,2]
[388430490,1759167042479,-151.0,0.00023711,2]
[388430491,1759167042488,-800.0,0.00023711,2]
[388430492,1759167042497,-500.0,0.00023711,2]
[388430493,1759167042506,-1565.0,0.00023711,2]
[388430494,1759167042515,-151.0,0.00023711,2]
[388430495,1759167042524,-500.0,0.00023711,2]
[388430496,1759167042534,-500.0,0.00023711,2]
[388430497,1759167042543,-151.0,0.00023711,2]
[388430498,1759167042552,-151.0,0.00023711,2]
[388430499,1759167042562,-500.0,0.00023711,2]
[388430500,1759167042571,-500.0,0.00023711,2]
[388430501,1759167042580,-500.0,0.00023711,2]
[388430502,1759167042590,-480.0,0.00023713,2]
[388430503,1759167042602,-480.0,0.00023713,2]
[388430504,1759167042611,-480.0,0.00023713,2]
[388430505,1759167042621,-800.0,0.00023725,2]
[388430506,1759167042631,-800.0,0.00023734,2]
[388430507,1759167042641,-2076.94049599,0.00023745,2]
[388430508,1759167042650,-168.0,0.00023762,2]
[388430509,1759167042659,-800.0,0.00023771,2]
[388430510,1759167042668,-502.64759426,0.00023773,2]
[388430511,1759167042677,-500.0,0.00023773,2]
[388430512,1759167042686,-437.9317725,0.00023773,2]
[388430513,1759167042695,-373.59886101,0.00023773,2]
[388430514,1759167042705,-500.0,0.00023773,2]
[388430515,1759167042714,-500.0,0.00023773,2]
[388430516,1759167042723,-500.0,0.00023773,2]
[388430517,1759167042732,-500.0,0.00023773,2]
[388430518,1759167042741,-500.0,0.00023773,2]
[388430519,1759167042751,-500.0,0.00023773,2]
[388430520,1759167042760,-500.0,0.00023773,2]
[388430521,1759167042769,-150.0,0.00023773,2]
[388430522,1759167042778,-500.0,0.00023773,2]
[388430523,1759167042787,-500.0,0.00023773,2]
[388430524,1759167042796,-302.68444569,0.00023773,2]
[388430525,1759167042805,-500.0,0.00023773,2]
[388430526,1759167042815,-500.0,0.00023773,2]
[388430527,1759167042824,-500.0,0.00023773,2]
[388430528,1759167042833,-500.0,0.00023773,2]
[388430529,1759167042844,-500.0,0.00023773,2]
[388430530,1759167042853,-500.0,0.00023773,2]
[388430531,1759167042861,-500.0,0.00023773,2]
[388430532,1759167042870,-500.0,0.00023773,2]
[388430533,1759167042879,-500.0,0.00023773,2]
[388430534,1759167042888,-500.0,0.00023773,2]
[388430536,1759167042897,-500.0,0.00023773,2]
[388430538,1759167042906,-500.0,0.00023773,2]
[388430540,1759167042915,-500.0,0.00023773,2]
[388430541,1759167042924,-500.0,0.00023773,2]
[388430542,1759167042934,-500.0,0.00023773,2]
[388430543,1759167042943,-500.0,0.00023773,2]
[388430545,1759167042953,-800.0,0.00023774,2]
[388430547,1759167042962,-800.0,0.00023804,2]
[388430549,1759167042971,-800.0,0.00023813,2]
[388430551,1759167042979,-800.0,0.00023813,2]
[388430553,1759167042989,-2076.94049599,0.00023814,2]
[388430555,1759167042997,-800.0,0.00023824,2]
[388430557,1759167043006,-500.0,0.00023829,2]
[388430559,1759167043015,-160.0,0.00023832,4]
[388430561,1759167043024,-168.0,0.0002385,2]
[388430562,1759167043033,-800.0,0.00023852,2]
[388430563,1759167043042,-500.0,0.00023873,2]
[388430564,1759167043050,-517.07436645,0.00023873,2]
[388430565,1759167043059,-500.0,0.00023873,2]
[388430566,1759167043068,-500.0,0.00023873,2]
[388430567,1759167043077,-500.0,0.00023873,2]
[388430568,1759167043085,-500.0,0.00023873,2]
[388430569,1759167043095,-500.0,0.00023873,2]
[388430570,1759167043104,-500.0,0.00023873,2]
[388430571,1759167043113,-500.0,0.00023873,2]
[388430572,1759167043122,-279.20371496,0.00023873,2]
[388430573,1759167043130,-515.16845242,0.00023873,2]
[388430574,1759167043139,-503.12023794,0.00023873,2]
[388430575,1759167043152,-500.0,0.00023873,2]
[388430576,1759167043161,-500.0,0.00023873,2]
[388430577,1759167043170,-500.0,0.00023873,2]
[388430578,1759167043179,-500.0,0.00023873,2]
[388430579,1759167043190,-500.0,0.00023873,2]
[388430580,1759167043202,-500.0,0.00023873,2]
[388430581,1759167043211,-500.0,0.00023873,2]
[388430582,1759167043220,-500.0,0.00023873,2]
[388430583,1759167043231,-500.0,0.00023873,2]
[388430584,1759167043241,-500.0,0.00023873,2]
[388430585,1759167043250,-500.0,0.00023873,2]
[388430586,1759167043259,-500.0,0.00023873,2]
[388430587,1759167043268,-500.0,0.00023873,2]
[388430588,1759167043277,-500.0,0.00023873,2]
[388430589,1759167043286,-500.0,0.00023873,2]
[388430590,1759167043295,-500.0,0.00023873,2]
[388430591,1759167043304,-500.0,0.00023873,2]
[388430592,1759167043313,-500.0,0.00023873,2]
[388430593,1759167043322,-535.9630655,0.00023873,2]
[388430594,1759167043330,-500.0,0.00023873,2]
[388430595,1759167043339,-500.0,0.00023873,2]
[388430596,1759167043349,-500.0,0.00023873,2]
[388430597,1759167043358,-500.0,0.00023873,2]
[388430598,1759167043367,-500.0,0.00023873,2]
[388430599,1759167043376,-500.0,0.00023873,2]
[388430600,1759167043385,-500.0,0.00023873,2]
[388430601,1759167043394,-509.86893301,0.00023873,2]
[388430602,1759167043403,-500.0,0.00023873,2]
[388430603,1759167043413,-500.0,0.00023873,2]
[388430604,1759167043421,-500.0,0.00023873,2]
[388430605,1759167043430,-175.00939999,0.00023873,2]
[388430606,1759167043439,-500.0,0.00023873,2]
[388430607,1759167043449,-500.0,0.00023873,2]
[388430608,1759167043457,-500.0,0.00023873,2]
[388430609,1759167043466,-800.0,0.00023879,2]
[388430610,1759167043475,-370000.0,0.00023881,2]
[388430611,1759167043484,-10000.0,0.00023881,2]
[388430612,1759167043493,-2076.94049599,0.00023882,2]
[388430613,1759167043502,-176.55544409,0.00023883,2]
[388430614,1759167043511,-151.0,0.000239,10]
[388430615,1759167043520,-151.0,0.000239,9]
[388430616,1759167043529,-151.0,0.000239,7]
[388430617,1759167043538,-151.0,0.000239,6]
[388430618,1759167043547,-800.0,0.00023903,2]
[388430619,1759167043556,-155.1244069,0.0002391,2]
[388430620,1759167043565,-800.0,0.00023929,2]
[388430621,1759167043574,-800.0,0.0002393,2]
[388430622,1759167043583,-800.0,0.00023933,2]
[388430623,1759167043593,-479.94765416,0.00023957,2]
[388430624,1759167043601,-800.0,0.0002396,2]
[388430625,1759167043611,-800.0,0.00023966,2]
[388430626,1759167043620,-800.0,0.00023966,2]
[388430627,1759167043778,-890.59,0.00023969,3]
[388430628,1759167043788,-233.87608454,0.00023969,3]
[388430629,1759167043798,-220.66493066,0.00023971,2]
[388430630,1759167043807,-500.0,0.00023973,2]
[388430631,1759167043816,-605.27830802,0.00023973,2]
[388430632,1759167043825,-507.51756834,0.00023973,2]
[388430633,1759167043834,-500.0,0.00023973,2]
[388430634,1759167043843,-500.0,0.00023973,2]
[388430635,1759167043853,-516.0459655,0.00023973,2]